[Event "Titled Tuesday Blitz June 6 Early 2023"]
[White "Avazkhonov, Alikhon"]
[Black "brm72"]
[WhiteFideId "14208504"]
[WhiteElo "1739"]
[BlackElo "2568"]
[Result "0-1"]
[Round "5"]
[TimeControl "180+2"]
[Date "2023.06.06"]
[WhiteClock "0:00:01"]
[BlackClock "0:00:06"]
[Board "101"]

1. e4 {[%clk 0:03:00]}  c5 {[%clk 0:02:59]} 2. Nf3 {[%clk 0:02:59]}  d6 {[%clk 0:02:59]} 3. d4 {[%clk 0:02:59]}  cxd4 {[%clk 0:03:00]} 4. Nxd4 {[%clk 0:03:00]}  Nf6 {[%clk 0:03:00]} 5. Nc3 {[%clk 0:03:00]}  a6 {[%clk 0:03:00]} 6. Bg5 {[%clk 0:03:01]}  e6 {[%clk 0:03:01]} 7. f4 {[%clk 0:03:02]}  Be7 {[%clk 0:03:01]} 8. Qf3 {[%clk 0:03:01]}  Qc7 {[%clk 0:03:02]} 9. O-O-O {[%clk 0:03:02]}  Nbd7 {[%clk 0:03:02]} 10. g4 {[%clk 0:02:58]}  h6 {[%clk 0:03:01]} 11. Bxf6 {[%clk 0:02:57]}  Bxf6 {[%clk 0:03:02]} 12. h4 {[%clk 0:02:55]}  Nb6 {[%clk 0:03:02]} 13. g5 {[%clk 0:02:55]}  Bxd4 {[%clk 0:03:03]} 14. Rxd4 {[%clk 0:02:55]}  Qc5 {[%clk 0:03:04]} 15. Rd1 {[%clk 0:02:56]}  Bd7 {[%clk 0:03:01]} 16. Kb1 {[%clk 0:02:49]}  O-O-O {[%clk 0:02:50]} 17. Bg2 {[%clk 0:02:48]}  Bc6 {[%clk 0:02:48]} 18. Qg3 {[%clk 0:02:38]}  Nc4 {[%clk 0:02:25]} 19. Rhe1 {[%clk 0:02:16]}  hxg5 {[%clk 0:02:12]} 20. hxg5 {[%clk 0:02:16]}  g6 {[%clk 0:01:43]} 21. b3 {[%clk 0:02:11]}  Na3+ {[%clk 0:01:17]} 22. Kb2 {[%clk 0:02:12]}  b5 {[%clk 0:01:17]} 23. Rd2 {[%clk 0:01:08]}  Kb8 {[%clk 0:01:09]} 24. e5 {[%clk 0:00:43]}  Bxg2 {[%clk 0:01:00]} 25. Qxg2 {[%clk 0:00:41]}  d5 {[%clk 0:01:00]} 26. Qf2 {[%clk 0:00:35]}  Qxf2 {[%clk 0:00:46]} 27. Rxf2 {[%clk 0:00:35]}  b4 {[%clk 0:00:46]} 28. Ne2 {[%clk 0:00:30]}  Nb5 {[%clk 0:00:43]} 29. Rd1 {[%clk 0:00:30]}  Kb7 {[%clk 0:00:35]} 30. Nd4 {[%clk 0:00:15]}  Nc3 {[%clk 0:00:36]} 31. Rg1 {[%clk 0:00:11]}  Ne4 {[%clk 0:00:35]} 32. Re2 {[%clk 0:00:10]}  Rh4 {[%clk 0:00:35]} 33. a3 {[%clk 0:00:01]}  bxa3+ {[%clk 0:00:31]} 34. Kxa3 {[%clk 0:00:02]}  Rxf4 {[%clk 0:00:32]} 35. Rh2 {[%clk 0:00:03]}  Nc3 {[%clk 0:00:25]} 36. Ne2 {[%clk 0:00:01]}  Nxe2 {[%clk 0:00:25]} 37. Rxe2 {[%clk 0:00:02]}  Kc6 {[%clk 0:00:22]} 38. Rh2 {[%clk 0:00:03]}  d4 {[%clk 0:00:20]} 39. Rh7 {[%clk 0:00:03]}  Rf2 {[%clk 0:00:20]} 40. Re1 {[%clk 0:00:03]}  Kd5 {[%clk 0:00:20]} 41. Kb4 {[%clk 0:00:02]}  Rd7 {[%clk 0:00:18]} 42. c4+ {[%clk 0:00:03]}  dxc3 {[%clk 0:00:18]} 43. Kxc3 {[%clk 0:00:04]}  Rc7+ {[%clk 0:00:17]} 44. Kd3 {[%clk 0:00:04]}  Rb2 {[%clk 0:00:17]} 45. Rf1 {[%clk 0:00:02]}  Rxb3+ {[%clk 0:00:17]} 46. Kd2 {[%clk 0:00:03]}  Rbb7 {[%clk 0:00:13]} 47. Ra1 {[%clk 0:00:03]}  Kxe5 {[%clk 0:00:11]} 48. Rxa6 {[%clk 0:00:04]}  Kf5 {[%clk 0:00:11]} 49. Ra5+ {[%clk 0:00:04]}  e5 {[%clk 0:00:11]} 50. Rh8 {[%clk 0:00:03]}  Rd7+ {[%clk 0:00:10]} 51. Ke3 {[%clk 0:00:04]}  Rb3+ {[%clk 0:00:10]} 52. Ke2 {[%clk 0:00:03]}  Re7 {[%clk 0:00:07]} 53. Rh3 {[%clk 0:00:02]}  Rxh3 {[%clk 0:00:06]} 54. Kf2 {[%clk 0:00:01]}  Kxg5 {[%clk 0:00:06]} 0-1


[Site "https://www.chess.com"]

[Event "Titled Tuesday Blitz June 6 Early 2023"]
[White "Toktomushev, Teimur"]
[Black "Degenbaev, Aziz"]
[WhiteFideId "14176726"]
[BlackFideId "13802640"]
[WhiteElo "2116"]
[BlackElo "2152"]
[Result "1-0"]
[Round "5"]
[TimeControl "180+2"]
[Date "2023.06.06"]
[WhiteClock "0:00:03"]
[BlackClock "0:00:01"]
[Board "102"]

1. d4 {[%clk 0:03:00]}  Nf6 {[%clk 0:03:00]} 2. c4 {[%clk 0:03:00]}  g6 {[%clk 0:03:00]} 3. Nc3 {[%clk 0:03:00]}  Bg7 {[%clk 0:03:00]} 4. e4 {[%clk 0:03:00]}  d6 {[%clk 0:03:01]} 5. f3 {[%clk 0:03:01]}  O-O {[%clk 0:03:00]} 6. Be3 {[%clk 0:03:01]}  c5 {[%clk 0:03:01]} 7. Nge2 {[%clk 0:03:02]}  Nc6 {[%clk 0:03:00]} 8. d5 {[%clk 0:03:02]}  Ne5 {[%clk 0:03:00]} 9. Ng3 {[%clk 0:03:03]}  h5 {[%clk 0:02:58]} 10. Be2 {[%clk 0:03:03]}  h4 {[%clk 0:02:57]} 11. Nf1 {[%clk 0:03:03]}  a6 {[%clk 0:02:56]} 12. a4 {[%clk 0:03:02]}  e6 {[%clk 0:02:54]} 13. Bg5 {[%clk 0:02:22]}  h3 {[%clk 0:02:38]} 14. Ne3 {[%clk 0:02:19]}  hxg2 {[%clk 0:02:30]} 15. Rg1 {[%clk 0:02:18]}  Qa5 {[%clk 0:02:23]} 16. Rxg2 {[%clk 0:02:05]}  exd5 {[%clk 0:02:12]} 17. Bxf6 {[%clk 0:02:01]}  Bxf6 {[%clk 0:02:12]} 18. Nxd5 {[%clk 0:02:01]}  Bh4+ {[%clk 0:02:12]} 19. Kd2 {[%clk 0:02:02]}  Bh3 {[%clk 0:01:59]} 20. Rg1 {[%clk 0:01:52]}  Nc6 {[%clk 0:01:46]} 21. f4 {[%clk 0:01:36]}  Rfe8 {[%clk 0:01:28]} 22. Bg4 {[%clk 0:01:31]}  Rxe4 {[%clk 0:01:19]} 23. Kc1 {[%clk 0:00:51]}  Rd4 {[%clk 0:01:14]} 24. Qf3 {[%clk 0:00:50]}  Bxg4 {[%clk 0:01:10]} 25. Qxg4 {[%clk 0:00:51]}  Qd8 {[%clk 0:00:50]} 26. Qh5 {[%clk 0:00:25]}  Bf6 {[%clk 0:00:10]} 27. f5 {[%clk 0:00:18]}  Ne5 {[%clk 0:00:08]} 28. fxg6 {[%clk 0:00:13]}  fxg6 {[%clk 0:00:06]} 29. Kc2 {[%clk 0:00:05]}  Kg7 {[%clk 0:00:03]} 30. Raf1 {[%clk 0:00:05]}  Bg5 {[%clk 0:00:01]} 31. Rxg5 {[%clk 0:00:03]} 1-0


[Site "https://www.chess.com"]

[Event "Titled Tuesday Blitz June 6 Early 2023"]
[White "Matveeva, Olga"]
[Black "Sargsyan, Anna M."]
[WhiteFideId "24107018"]
[BlackFideId "13308130"]
[WhiteElo "2009"]
[BlackElo "2284"]
[Result "1-0"]
[Round "5"]
[TimeControl "180+2"]
[Date "2023.06.06"]
[WhiteClock "0:00:10"]
[BlackClock "0:00:01"]
[Board "103"]

1. d4 {[%clk 0:03:00]}  d5 {[%clk 0:02:58]} 2. c4 {[%clk 0:03:01]}  c6 {[%clk 0:02:57]} 3. Nf3 {[%clk 0:03:01]}  Nf6 {[%clk 0:02:57]} 4. e3 {[%clk 0:03:01]}  Bg4 {[%clk 0:02:56]} 5. h3 {[%clk 0:03:00]}  Bh5 {[%clk 0:02:54]} 6. g4 {[%clk 0:03:00]}  Bg6 {[%clk 0:02:54]} 7. Ne5 {[%clk 0:03:01]}  e6 {[%clk 0:02:50]} 8. Qb3 {[%clk 0:02:59]}  Qb6 {[%clk 0:02:49]} 9. Nd2 {[%clk 0:02:44]}  Nbd7 {[%clk 0:02:44]} 10. Nxg6 {[%clk 0:02:41]}  hxg6 {[%clk 0:02:43]} 11. Bg2 {[%clk 0:02:40]}  Be7 {[%clk 0:02:38]} 12. O-O {[%clk 0:02:25]}  g5 {[%clk 0:02:20]} 13. Qxb6 {[%clk 0:02:16]}  Nxb6 {[%clk 0:02:12]} 14. c5 {[%clk 0:02:00]}  Nbd7 {[%clk 0:02:08]} 15. e4 {[%clk 0:01:57]}  e5 {[%clk 0:02:00]} 16. exd5 {[%clk 0:01:50]}  Nxd5 {[%clk 0:02:01]} 17. dxe5 {[%clk 0:01:45]}  Nxc5 {[%clk 0:01:45]} 18. Nc4 {[%clk 0:01:37]}  Nd3 {[%clk 0:01:19]} 19. Bd2 {[%clk 0:01:01]}  N3f4 {[%clk 0:01:17]} 20. Rfe1 {[%clk 0:01:00]}  Nxh3+ {[%clk 0:01:13]} 21. Kf1 {[%clk 0:00:51]}  Nhf4 {[%clk 0:01:10]} 22. Nd6+ {[%clk 0:00:40]}  Bxd6 {[%clk 0:00:55]} 23. exd6+ {[%clk 0:00:41]}  Kd7 {[%clk 0:00:24]} 24. Bxf4 {[%clk 0:00:36]}  gxf4 {[%clk 0:00:19]} 25. Rad1 {[%clk 0:00:18]}  Kxd6 {[%clk 0:00:17]} 26. Re4 {[%clk 0:00:17]}  g5 {[%clk 0:00:10]} 27. Red4 {[%clk 0:00:16]}  f6 {[%clk 0:00:02]} 28. Bxd5 {[%clk 0:00:15]}  cxd5 {[%clk 0:00:03]} 29. Rxd5+ {[%clk 0:00:16]}  Ke6 {[%clk 0:00:04]} 30. Rd6+ {[%clk 0:00:15]}  Kf7 {[%clk 0:00:04]} 31. Rd7+ {[%clk 0:00:15]}  Kg6 {[%clk 0:00:05]} 32. Kg2 {[%clk 0:00:13]}  Rae8 {[%clk 0:00:03]} 33. R1d2 {[%clk 0:00:12]}  Re4 {[%clk 0:00:02]} 34. Rxb7 {[%clk 0:00:11]}  f3+ {[%clk 0:00:02]} 35. Kxf3 {[%clk 0:00:10]}  Rf4+ {[%clk 0:00:03]} 36. Kg3 {[%clk 0:00:10]}  Rh4 {[%clk 0:00:01]} 37. f3 {[%clk 0:00:10]} 1-0


[Site "https://www.chess.com"]

[Event "Titled Tuesday Blitz June 6 Early 2023"]
[White "Krutko, Anatoly"]
[Black "FunnyDuck66"]
[WhiteFideId "4185862"]
[WhiteElo "2378"]
[BlackElo "2423"]
[Result "0-1"]
[Round "5"]
[TimeControl "180+2"]
[Date "2023.06.06"]
[WhiteClock "0:00:56"]
[BlackClock "0:01:20"]
[Board "104"]

1. e4 {[%clk 0:03:00]}  c6 {[%clk 0:03:00]} 2. Nc3 {[%clk 0:02:59]}  d5 {[%clk 0:03:00]} 3. Qe2 {[%clk 0:02:59]}  dxe4 {[%clk 0:03:01]} 4. Nxe4 {[%clk 0:02:56]}  Be6 {[%clk 0:03:00]} 5. d3 {[%clk 0:02:54]}  Nf6 {[%clk 0:03:00]} 6. Ng5 {[%clk 0:02:54]}  Bf5 {[%clk 0:02:59]} 7. Bd2 {[%clk 0:02:48]}  e6 {[%clk 0:02:56]} 8. O-O-O {[%clk 0:02:48]}  Nbd7 {[%clk 0:02:53]} 9. N1f3 {[%clk 0:02:43]}  h6 {[%clk 0:02:52]} 10. Ne4 {[%clk 0:02:43]}  Be7 {[%clk 0:02:49]} 11. h3 {[%clk 0:02:41]}  Qc7 {[%clk 0:02:39]} 12. g4 {[%clk 0:02:37]}  Bg6 {[%clk 0:02:38]} 13. Rg1 {[%clk 0:02:12]}  O-O-O {[%clk 0:02:38]} 14. h4 {[%clk 0:02:04]}  Bxe4 {[%clk 0:02:34]} 15. dxe4 {[%clk 0:02:04]}  Nc5 {[%clk 0:02:35]} 16. e5 {[%clk 0:02:01]}  Nd5 {[%clk 0:02:33]} 17. g5 {[%clk 0:01:57]}  hxg5 {[%clk 0:02:33]} 18. Nxg5 {[%clk 0:01:51]}  Bxg5 {[%clk 0:02:24]} 19. hxg5 {[%clk 0:01:51]}  g6 {[%clk 0:02:21]} 20. Bg2 {[%clk 0:01:49]}  Na4 {[%clk 0:02:16]} 21. Qc4 {[%clk 0:01:43]}  Ndb6 {[%clk 0:02:02]} 22. Qe4 {[%clk 0:01:42]}  Rd5 {[%clk 0:01:53]} 23. f4 {[%clk 0:01:39]}  Rhd8 {[%clk 0:01:49]} 24. Bf3 {[%clk 0:01:30]}  Rd4 {[%clk 0:01:44]} 25. Qe2 {[%clk 0:01:22]}  Nxb2 {[%clk 0:01:32]} 26. Kxb2 {[%clk 0:01:15]}  Nc4+ {[%clk 0:01:31]} 27. Kc1 {[%clk 0:01:11]}  Qe7 {[%clk 0:01:31]} 28. Kb1 {[%clk 0:00:57]}  Nxd2+ {[%clk 0:01:24]} 29. Ka1 {[%clk 0:00:56]}  Qa3 {[%clk 0:01:20]} 0-1


[Site "https://www.chess.com"]

[Event "Titled Tuesday Blitz June 6 Early 2023"]
[White "Iskusnyh, Sergei"]
[Black "Moore, Nicholas"]
[WhiteFideId "4120027"]
[BlackFideId "4303709"]
[WhiteElo "2492"]
[BlackElo "2408"]
[Result "1-0"]
[Round "5"]
[TimeControl "180+2"]
[Date "2023.06.06"]
[WhiteClock "0:00:12"]
[BlackClock "0:00:06"]
[Board "105"]

1. d4 {[%clk 0:03:00]}  d5 {[%clk 0:02:53]} 2. c4 {[%clk 0:02:59]}  c6 {[%clk 0:02:54]} 3. Nf3 {[%clk 0:02:59]}  Nf6 {[%clk 0:02:53]} 4. e3 {[%clk 0:03:00]}  e6 {[%clk 0:02:53]} 5. b3 {[%clk 0:02:46]}  b6 {[%clk 0:02:52]} 6. Bd3 {[%clk 0:02:42]}  Bb7 {[%clk 0:02:51]} 7. O-O {[%clk 0:02:36]}  Nbd7 {[%clk 0:02:50]} 8. Bb2 {[%clk 0:02:35]}  Bd6 {[%clk 0:02:50]} 9. Nc3 {[%clk 0:02:33]}  Qe7 {[%clk 0:02:48]} 10. Qc2 {[%clk 0:02:21]}  O-O {[%clk 0:02:46]} 11. Rfe1 {[%clk 0:02:20]}  Rfe8 {[%clk 0:02:45]} 12. e4 {[%clk 0:02:09]}  dxe4 {[%clk 0:02:45]} 13. Nxe4 {[%clk 0:02:09]}  Nxe4 {[%clk 0:02:46]} 14. Rxe4 {[%clk 0:02:03]}  c5 {[%clk 0:02:34]} 15. d5 {[%clk 0:01:55]}  Nf8 {[%clk 0:02:33]} 16. Rae1 {[%clk 0:01:44]}  Qc7 {[%clk 0:02:32]} 17. Qc3 {[%clk 0:01:27]}  f6 {[%clk 0:02:24]} 18. Rg4 {[%clk 0:01:24]}  e5 {[%clk 0:02:23]} 19. Nh4 {[%clk 0:01:24]}  Bc8 {[%clk 0:02:22]} 20. Bf5 {[%clk 0:01:23]}  Kh8 {[%clk 0:02:11]} 21. Qh3 {[%clk 0:01:20]}  Bd7 {[%clk 0:01:56]} 22. Re3 {[%clk 0:01:07]}  Qc8 {[%clk 0:01:53]} 23. Bxd7 {[%clk 0:01:01]}  Qxd7 {[%clk 0:01:53]} 24. Reg3 {[%clk 0:00:53]}  Re7 {[%clk 0:01:53]} 25. Bc1 {[%clk 0:00:43]}  e4 {[%clk 0:01:41]} 26. Bf4 {[%clk 0:00:37]}  Bxf4 {[%clk 0:01:30]} 27. Rxf4 {[%clk 0:00:36]}  Qxh3 {[%clk 0:01:30]} 28. Rxh3 {[%clk 0:00:37]}  g5 {[%clk 0:01:16]} 29. Rxf6 {[%clk 0:00:32]}  gxh4 {[%clk 0:01:15]} 30. Rxh4 {[%clk 0:00:33]}  Kg7 {[%clk 0:01:10]} 31. Rc6 {[%clk 0:00:31]}  Rd8 {[%clk 0:01:01]} 32. Kf1 {[%clk 0:00:30]}  Rdd7 {[%clk 0:00:59]} 33. Ke2 {[%clk 0:00:30]}  Ng6 {[%clk 0:00:58]} 34. Rg4 {[%clk 0:00:29]}  Kf7 {[%clk 0:00:55]} 35. Ke3 {[%clk 0:00:28]}  Rd8 {[%clk 0:00:35]} 36. Rg5 {[%clk 0:00:22]}  Rdd7 {[%clk 0:00:22]} 37. g3 {[%clk 0:00:22]}  Kg7 {[%clk 0:00:20]} 38. h4 {[%clk 0:00:21]}  Re5 {[%clk 0:00:18]} 39. Rxe5 {[%clk 0:00:19]}  Nxe5 {[%clk 0:00:18]} 40. Re6 {[%clk 0:00:18]}  Nd3 {[%clk 0:00:18]} 41. f4 {[%clk 0:00:17]}  Nc1 {[%clk 0:00:18]} 42. Kxe4 {[%clk 0:00:17]}  Nxa2 {[%clk 0:00:18]} 43. f5 {[%clk 0:00:18]}  Nc3+ {[%clk 0:00:16]} 44. Ke5 {[%clk 0:00:17]}  Ne2 {[%clk 0:00:15]} 45. g4 {[%clk 0:00:17]}  Nd4 {[%clk 0:00:15]} 46. g5 {[%clk 0:00:15]}  Nxe6 {[%clk 0:00:15]} 47. fxe6 {[%clk 0:00:12]}  Rd8 {[%clk 0:00:15]} 48. e7 {[%clk 0:00:12]}  Ra8 {[%clk 0:00:07]} 49. Ke6 {[%clk 0:00:12]}  b5 {[%clk 0:00:07]} 50. d6 {[%clk 0:00:11]}  bxc4 {[%clk 0:00:07]} 51. bxc4 {[%clk 0:00:11]}  a5 {[%clk 0:00:06]} 52. d7 {[%clk 0:00:12]} 1-0


[Site "https://www.chess.com"]

[Event "Titled Tuesday Blitz June 6 Early 2023"]
[White "Diaz Rosas, Julio Cesar"]
[Black "Mohammed, Zozek Salah Mohammed"]
[WhiteFideId "5105099"]
[BlackFideId "4803361"]
[WhiteElo "2284"]
[BlackElo "2211"]
[Result "1-0"]
[Round "5"]
[TimeControl "180+2"]
[Date "2023.06.06"]
[WhiteClock "0:00:09"]
[BlackClock "0:00:20"]
[Board "106"]

1. e4 {[%clk 0:02:53]}  d5 {[%clk 0:02:58]} 2. exd5 {[%clk 0:02:48]}  Qxd5 {[%clk 0:02:59]} 3. Nc3 {[%clk 0:02:48]}  Qd8 {[%clk 0:02:59]} 4. d4 {[%clk 0:02:46]}  Nf6 {[%clk 0:02:57]} 5. Bc4 {[%clk 0:02:46]}  a6 {[%clk 0:02:57]} 6. Bb3 {[%clk 0:02:45]}  b5 {[%clk 0:02:56]} 7. Nf3 {[%clk 0:02:39]}  c5 {[%clk 0:02:55]} 8. dxc5 {[%clk 0:02:35]}  Qxd1+ {[%clk 0:02:56]} 9. Nxd1 {[%clk 0:02:35]}  Bb7 {[%clk 0:02:55]} 10. a4 {[%clk 0:02:31]}  b4 {[%clk 0:02:49]} 11. Ne5 {[%clk 0:02:15]}  e6 {[%clk 0:02:48]} 12. O-O {[%clk 0:02:00]}  Bxc5 {[%clk 0:02:37]} 13. Nd3 {[%clk 0:01:55]}  Be7 {[%clk 0:02:34]} 14. a5 {[%clk 0:01:50]}  Nc6 {[%clk 0:02:34]} 15. Be3 {[%clk 0:01:44]}  O-O {[%clk 0:02:32]} 16. Bb6 {[%clk 0:01:44]}  Nd7 {[%clk 0:02:30]} 17. Be3 {[%clk 0:01:39]}  Bd8 {[%clk 0:02:07]} 18. Nc5 {[%clk 0:01:31]}  Nxc5 {[%clk 0:02:03]} 19. Bxc5 {[%clk 0:01:32]}  Be7 {[%clk 0:02:00]} 20. Bxe7 {[%clk 0:01:24]}  Nxe7 {[%clk 0:02:01]} 21. Ne3 {[%clk 0:01:24]}  Rfd8 {[%clk 0:01:59]} 22. Rfd1 {[%clk 0:01:12]}  Rac8 {[%clk 0:01:56]} 23. Nc4 {[%clk 0:01:02]}  Kf8 {[%clk 0:01:46]} 24. Nb6 {[%clk 0:00:57]}  Rxd1+ {[%clk 0:01:39]} 25. Rxd1 {[%clk 0:00:58]}  Re8 {[%clk 0:01:37]} 26. Rd7 {[%clk 0:00:55]}  Bc6 {[%clk 0:01:34]} 27. Rc7 {[%clk 0:00:46]}  Rd8 {[%clk 0:01:33]} 28. f3 {[%clk 0:00:37]}  Bd5 {[%clk 0:01:23]} 29. Ba4 {[%clk 0:00:29]}  Ng6 {[%clk 0:01:14]} 30. Kf2 {[%clk 0:00:27]}  Ne5 {[%clk 0:01:07]} 31. h3 {[%clk 0:00:26]}  g5 {[%clk 0:01:05]} 32. Ke3 {[%clk 0:00:23]}  h5 {[%clk 0:01:04]} 33. Nd7+ {[%clk 0:00:17]}  Nxd7 {[%clk 0:01:04]} 34. Bxd7 {[%clk 0:00:18]}  b3 {[%clk 0:00:43]} 35. c3 {[%clk 0:00:15]}  Rb8 {[%clk 0:00:41]} 36. Rc8+ {[%clk 0:00:13]}  Rxc8 {[%clk 0:00:39]} 37. Bxc8 {[%clk 0:00:14]}  Bc4 {[%clk 0:00:39]} 38. g3 {[%clk 0:00:14]}  Ke7 {[%clk 0:00:38]} 39. h4 {[%clk 0:00:12]}  gxh4 {[%clk 0:00:37]} 40. gxh4 {[%clk 0:00:13]}  Kd6 {[%clk 0:00:37]} 41. Kd4 {[%clk 0:00:13]}  Bb5 {[%clk 0:00:36]} 42. f4 {[%clk 0:00:13]}  f6 {[%clk 0:00:35]} 43. Bb7 {[%clk 0:00:13]}  e5+ {[%clk 0:00:35]} 44. fxe5+ {[%clk 0:00:13]}  fxe5+ {[%clk 0:00:36]} 45. Ke3 {[%clk 0:00:14]}  Ke6 {[%clk 0:00:34]} 46. Be4 {[%clk 0:00:12]}  Kf6 {[%clk 0:00:29]} 47. Bd5 {[%clk 0:00:10]}  Kf5 {[%clk 0:00:27]} 48. Bxb3 {[%clk 0:00:09]}  Kg4 {[%clk 0:00:28]} 49. c4 {[%clk 0:00:09]}  Bc6 {[%clk 0:00:27]} 50. c5 {[%clk 0:00:08]}  Kxh4 {[%clk 0:00:27]} 51. Bc4 {[%clk 0:00:08]}  Bb7 {[%clk 0:00:27]} 52. b4 {[%clk 0:00:08]}  Kg3 {[%clk 0:00:27]} 53. b5 {[%clk 0:00:08]}  axb5 {[%clk 0:00:27]} 54. Bxb5 {[%clk 0:00:09]}  h4 {[%clk 0:00:28]} 55. a6 {[%clk 0:00:09]}  Ba8 {[%clk 0:00:26]} 56. c6 {[%clk 0:00:09]}  h3 {[%clk 0:00:27]} 57. c7 {[%clk 0:00:09]}  h2 {[%clk 0:00:27]} 58. c8=Q {[%clk 0:00:09]}  h1=Q {[%clk 0:00:28]} 59. Qg8+ {[%clk 0:00:09]}  Kh2 {[%clk 0:00:27]} 60. Qh7+ {[%clk 0:00:09]}  Kg1 {[%clk 0:00:27]} 61. Qg6+ {[%clk 0:00:09]}  Qg2 {[%clk 0:00:25]} 62. Qxg2+ {[%clk 0:00:08]}  Kxg2 {[%clk 0:00:25]} 63. Bd3 {[%clk 0:00:09]}  Kg3 {[%clk 0:00:20]} 64. Be4 {[%clk 0:00:09]} 1-0


[Site "https://www.chess.com"]

[Event "Titled Tuesday Blitz June 6 Early 2023"]
[White "Gheorghiu, Calin"]
[Black "Manon-og, Ramon Jr."]
[WhiteFideId "1200305"]
[BlackFideId "5200776"]
[WhiteElo "2204"]
[BlackElo "2373"]
[Result "0-1"]
[Round "5"]
[TimeControl "180+2"]
[Date "2023.06.06"]
[WhiteClock "0:00:26"]
[BlackClock "0:00:21"]
[Board "107"]

1. d4 {[%clk 0:03:00]}  Nf6 {[%clk 0:02:03]} 2. c4 {[%clk 0:02:59]}  g6 {[%clk 0:02:03]} 3. Nc3 {[%clk 0:02:59]}  d5 {[%clk 0:02:03]} 4. cxd5 {[%clk 0:02:57]}  Nxd5 {[%clk 0:02:04]} 5. e4 {[%clk 0:02:57]}  Nxc3 {[%clk 0:02:04]} 6. bxc3 {[%clk 0:02:58]}  c5 {[%clk 0:02:05]} 7. Nf3 {[%clk 0:02:57]}  Bg7 {[%clk 0:02:05]} 8. Be3 {[%clk 0:02:51]}  O-O {[%clk 0:02:06]} 9. h3 {[%clk 0:02:50]}  Nc6 {[%clk 0:02:06]} 10. Be2 {[%clk 0:02:48]}  cxd4 {[%clk 0:02:06]} 11. cxd4 {[%clk 0:02:48]}  Qa5+ {[%clk 0:02:06]} 12. Kf1 {[%clk 0:02:11]}  Rd8 {[%clk 0:02:03]} 13. d5 {[%clk 0:02:03]}  Bxa1 {[%clk 0:01:43]} 14. Qxa1 {[%clk 0:02:02]}  Nb4 {[%clk 0:01:44]} 15. Bh6 {[%clk 0:01:38]}  f6 {[%clk 0:01:43]} 16. Bc4 {[%clk 0:01:36]}  Qc5 {[%clk 0:01:32]} 17. Bb3 {[%clk 0:01:32]}  Nd3 {[%clk 0:00:49]} 18. Ke2 {[%clk 0:00:47]}  Qxf2+ {[%clk 0:00:26]} 19. Kxd3 {[%clk 0:00:46]}  b6 {[%clk 0:00:27]} 20. Rf1 {[%clk 0:00:39]}  Ba6+ {[%clk 0:00:27]} 21. Bc4 {[%clk 0:00:30]}  Bxc4+ {[%clk 0:00:27]} 22. Kxc4 {[%clk 0:00:30]}  Rac8+ {[%clk 0:00:27]} 23. Kb3 {[%clk 0:00:29]}  Qc2+ {[%clk 0:00:27]} 24. Ka3 {[%clk 0:00:28]}  Rc3+ {[%clk 0:00:27]} 25. Kb4 {[%clk 0:00:28]}  Rc4+ {[%clk 0:00:22]} 26. Ka3 {[%clk 0:00:26]}  Ra4# {[%clk 0:00:21]} 0-1


[Site "https://www.chess.com"]

[Event "Titled Tuesday Blitz June 6 Early 2023"]
[White "Da Silva, Lindolfo Luiz"]
[Black "Machidon, Cristi"]
[WhiteFideId "2106558"]
[BlackFideId "13904590"]
[WhiteElo "2366"]
[BlackElo "2355"]
[Result "1-0"]
[Round "5"]
[TimeControl "180+2"]
[Date "2023.06.06"]
[WhiteClock "0:00:54"]
[BlackClock "0:00:03"]
[Board "109"]

1. d4 {[%clk 0:03:00]}  c5 {[%clk 0:02:59]} 2. Nf3 {[%clk 0:02:58]}  cxd4 {[%clk 0:02:59]} 3. Nxd4 {[%clk 0:02:59]}  Nf6 {[%clk 0:02:58]} 4. g3 {[%clk 0:02:58]}  d5 {[%clk 0:02:57]} 5. Bg2 {[%clk 0:02:58]}  e5 {[%clk 0:02:57]} 6. Nf3 {[%clk 0:02:58]}  Nc6 {[%clk 0:02:58]} 7. O-O {[%clk 0:02:55]}  Be6 {[%clk 0:02:58]} 8. c4 {[%clk 0:02:52]}  dxc4 {[%clk 0:02:53]} 9. Qa4 {[%clk 0:02:50]}  Nd7 {[%clk 0:02:44]} 10. Ng5 {[%clk 0:02:26]}  Nc5 {[%clk 0:02:41]} 11. Qb5 {[%clk 0:02:11]}  Bd7 {[%clk 0:02:27]} 12. Qxc4 {[%clk 0:02:09]}  Qf6 {[%clk 0:02:13]} 13. Nc3 {[%clk 0:01:52]}  Be6 {[%clk 0:01:47]} 14. Nd5 {[%clk 0:01:44]}  Bxd5 {[%clk 0:01:01]} 15. Bxd5 {[%clk 0:01:43]}  O-O-O {[%clk 0:00:53]} 16. Nxf7 {[%clk 0:01:31]}  Rxd5 {[%clk 0:00:10]} 17. Qxd5 {[%clk 0:01:29]}  Nb4 {[%clk 0:00:10]} 18. Qc4 {[%clk 0:01:25]}  Rg8 {[%clk 0:00:07]} 19. Bg5 {[%clk 0:01:20]}  Qe6 {[%clk 0:00:05]} 20. Nxe5 {[%clk 0:01:00]}  Qxc4 {[%clk 0:00:04]} 21. Nxc4 {[%clk 0:01:01]}  h6 {[%clk 0:00:02]} 22. Bf4 {[%clk 0:01:00]}  Nd5 {[%clk 0:00:02]} 23. Bd6 {[%clk 0:01:00]}  Bxd6 {[%clk 0:00:01]} 24. Nxd6+ {[%clk 0:01:01]}  Kd7 {[%clk 0:00:02]} 25. Nf5 {[%clk 0:01:00]}  Kc6 {[%clk 0:00:03]} 26. Rac1 {[%clk 0:00:59]}  a5 {[%clk 0:00:03]} 27. Rfd1 {[%clk 0:00:57]}  Nb4 {[%clk 0:00:03]} 28. a3 {[%clk 0:00:56]}  Na6 {[%clk 0:00:03]} 29. Ne7+ {[%clk 0:00:54]}  Kb5 {[%clk 0:00:03]} 30. Nxg8 {[%clk 0:00:54]} 1-0


[Site "https://www.chess.com"]

[Event "Titled Tuesday Blitz June 6 Early 2023"]
[White "Bogaudinov, Rushan"]
[Black "Liu, Casper"]
[WhiteFideId "4129288"]
[BlackFideId "1454153"]
[WhiteElo "1967"]
[BlackElo "2221"]
[Result "0-1"]
[Round "5"]
[TimeControl "180+2"]
[Date "2023.06.06"]
[WhiteClock "0:00:24"]
[BlackClock "0:00:26"]
[Board "113"]

1. d4 {[%clk 0:03:00]}  Nf6 {[%clk 0:03:00]} 2. Nf3 {[%clk 0:02:59]}  a6 {[%clk 0:03:00]} 3. c4 {[%clk 0:02:53]}  b5 {[%clk 0:03:00]} 4. c5 {[%clk 0:02:51]}  d6 {[%clk 0:02:57]} 5. b4 {[%clk 0:02:47]}  a5 {[%clk 0:02:52]} 6. e3 {[%clk 0:02:39]}  axb4 {[%clk 0:02:52]} 7. cxd6 {[%clk 0:02:32]}  exd6 {[%clk 0:02:46]} 8. Bxb5+ {[%clk 0:02:31]}  c6 {[%clk 0:02:46]} 9. Bd3 {[%clk 0:02:29]}  Bg4 {[%clk 0:02:45]} 10. Nbd2 {[%clk 0:02:23]}  d5 {[%clk 0:02:45]} 11. h3 {[%clk 0:02:18]}  Bh5 {[%clk 0:02:44]} 12. g4 {[%clk 0:02:05]}  Bg6 {[%clk 0:02:44]} 13. Nb3 {[%clk 0:02:00]}  Nbd7 {[%clk 0:02:41]} 14. Ne5 {[%clk 0:01:50]}  Nxe5 {[%clk 0:02:39]} 15. dxe5 {[%clk 0:01:51]}  Nd7 {[%clk 0:02:40]} 16. Bb2 {[%clk 0:01:51]}  Qg5 {[%clk 0:02:23]} 17. Bxg6 {[%clk 0:01:45]}  hxg6 {[%clk 0:02:20]} 18. Qd4 {[%clk 0:01:42]}  Be7 {[%clk 0:01:44]} 19. e6 {[%clk 0:01:26]}  fxe6 {[%clk 0:01:29]} 20. Qxg7 {[%clk 0:01:25]}  Rf8 {[%clk 0:01:16]} 21. Nd4 {[%clk 0:01:21]}  Bf6 {[%clk 0:01:12]} 22. Qh7 {[%clk 0:01:13]}  Rh8 {[%clk 0:01:02]} 23. Qxh8+ {[%clk 0:00:49]}  Bxh8 {[%clk 0:01:02]} 24. Nxe6 {[%clk 0:00:50]}  Qe7 {[%clk 0:00:33]} 25. Nc7+ {[%clk 0:00:38]}  Kd8 {[%clk 0:00:33]} 26. Nxd5 {[%clk 0:00:35]}  Qe4 {[%clk 0:00:27]} 27. Bxh8 {[%clk 0:00:29]}  Qxh1+ {[%clk 0:00:26]} 28. Ke2 {[%clk 0:00:29]}  Qxd5 {[%clk 0:00:26]} 29. h4 {[%clk 0:00:29]}  Ra3 {[%clk 0:00:23]} 30. h5 {[%clk 0:00:25]}  Rxa2+ {[%clk 0:00:23]} 31. Rxa2 {[%clk 0:00:25]}  Qxa2+ {[%clk 0:00:24]} 32. Kf3 {[%clk 0:00:25]}  gxh5 {[%clk 0:00:24]} 33. gxh5 {[%clk 0:00:24]}  Qf7+ {[%clk 0:00:25]} 34. Kg4 {[%clk 0:00:24]}  Qg8+ {[%clk 0:00:26]} 0-1


[Site "https://www.chess.com"]